[Event "10th Amsterdam Science Park 2022"]
[Site "Amsterdam"]
[Date "2022.07.18"]
[Round "1.6"]
[White "Stolwijk, Colin"]
[Black "De Ruiter, Tom"]
[Result "1-0"]
[ECO "B07"]
[WhiteElo "2277"]
[BlackElo "2007"]
[Annotator "TA"]
[PlyCount "115"]
[EventDate "2022.07.18"]
[EventCountry "NED"]
[SourceTitle "playchess.com"]
[Source "ChessBase"]
[SourceQuality "1"]
[TimeControl "5400+30"]

{[%evp 9,115,62,76,79,78,0,0,0,31,20,23,0,26,-46,147,35,55,-12,-20,-7,-11,-8,0,-10,0,-48,67,46,55,32,39,0,0,0,0,0,0,0,0,0,0,0,25,0,0,-32,-8,-60,-64,-59,-53,-53,-52,-62,-11,-25,0,0,0,-61,0,-83,-93,-98,-108,-107,-110,-106,-116,-104,-111,-107,-105,-251,-239,-191,-169,-145,18,-29,233,233,233,235,233,230,222,201,185,126,125,138,146,0,0,0,10,0,0,0,0,0,29982,29983,29983,29984,29985,29985]} 1. e4 {[%emt 0:00:04]} d6 {[%emt 0:00:16]} 2. d4 {[%emt 0:00:04]} Nf6 {[%emt 0:00:10]} 3. Nc3 {[%emt 0:00:05]} c6 {[%emt 0:00:11]} 4. Nf3 {[%emt 0:00:12]} Bg4 {[%emt 0:00:56]} 5. h3 {[%emt 0:01:57]} Bxf3 {[%emt 0:00:51]} 6. Qxf3 {[%emt 0:00:02] B07: Pirc Defence: Miscellaneous Systems.} e6 {[%emt 0:00:47]} 7. e5 {[%emt 0:03:28]} (7. d5 $16) 7... dxe5 $11 {[%emt 0:02:00]} 8. dxe5 {[%emt 0:00:07] [#] The position is equal.} Nfd7 $146 {[%emt 0:00:11]} ({Predecessor:} 8... Nd5 9. Bd2 Nd7 10. Qg3 Qc7 11. f4 Nxc3 12. Bxc3 g6 13. Be2 Qb6 14. O-O-O {1-0 (37) Vareille,F (2417)-Robertson,I (2062) Bucharest 2019}) 9. Bf4 {[%emt 0:01:18]} Qa5 {[%emt 0:02:42]} 10. O-O-O {[%emt 0:11:21]} Bb4 {[%emt 0:05:22]} 11. Ne4 {[%emt 0:04:20]} (11. Bd2 $11) 11... O-O $2 {[%emt 0:06:26]} (11... Qxa2 $15 {stays ahead.} 12. c3 Be7) 12. Kb1 {[%emt 0:19:41]} (12. a3 $16) 12... Nxe5 $14 {[%emt 0:09:45]} 13. Qh5 {[%emt 0:05:14]} (13. Qg3 $14 Ng6 14. Bc7) 13... Ng6 $1 $11 {[%emt 0:02:17]} 14. Qxa5 {[%emt 0:13:32]} (14. Bg5 {is more complex.} Na6 15. Bxa6 bxa6 16. Qe2) 14... Bxa5 {[%emt 0:00:14]} 15. Bd6 $132 {[%emt 0:00:05][%mdl 2048] White has counterplay} Re8 {[%emt 0:07:50]} 16. Nc5 {[%emt 0:05:12]} Bb6 {[%emt 0:00:27]} 17. g3 {[%emt 0:03:31]} (17. Nxb7 $11 {feels stronger.} Bxf2 18. Nc5) 17... Nf8 {[%emt 0:17:22]} (17... Rd8 $15 18. b4 (18. Nxb7 $2 Rd7 $19) 18... Bxc5 19. bxc5 Ne7) 18. Nxb7 $14 {[%emt 0:03:39] 0x0.0016862a1c89dp-1022s more active pieces.} Bxf2 {[%emt 0:00:40]} 19. Rd2 {[%emt 0:00:34]} Bb6 {[%emt 0:02:36]} 20. c4 {[%emt 0:01:48]} a5 {[%emt 0:09:45]} 21. c5 {[%emt 0:04:21]} Ra7 {[%emt 0:04:11]} 22. cxb6 {[%emt 0:01:08]} Rxb7 {[%emt 0:00:11]} 23. Bc7 {[%emt 0:00:08] This bishop pair is nice.} Nfd7 {[%emt 0:01:19]} 24. Ba6 $1 {[%emt 0:03:42]} Nxa6 {[%emt 0:02:15]} 25. Rxd7 {[%emt 0:00:04]} f6 {[%emt 0:08:44]} 26. g4 {[%emt 0:00:57]} (26. Rc1 $5 {[%cal Rc1c6]}) 26... e5 {[%emt 0:01:32]} 27. g5 {[%emt 0:00:45] gxf6 is the strong threat.} fxg5 {[%emt 0:03:45]} 28. Rf1 {[%emt 0:00:46]} (28. Rg1 $11) 28... Nc5 $15 {[%emt 0:02:19]} 29. Rd6 {[%emt 0:01:13]} Ne4 {[%emt 0:00:10]} 30. Rd3 {[%emt 0:00:25]} Nf6 $1 {[%emt 0:02:10]} 31. Rc3 {[%emt 0:02:55]} Re6 {[%emt 0:00:28]} ({Black should try} 31... e4 $15) 32. Rc5 {[%emt 0:00:40]} Ne4 {[%emt 0:00:19]} 33. Rc2 {[%emt 0:00:15]} Nf6 {[%emt 0:01:05]} 34. Rc5 {[%emt 0:00:08]} Ne4 {[%emt 0:00:07]} (34... Nd5 $15 35. Rxa5 Re8) 35. Rxa5 {[%emt 0:10:15]} (35. Rc2 $11 {remains equal.}) 35... Nd2+ $17 {[%emt 0:00:25]} 36. Kc1 {[%emt 0:00:02] Threatening mate with Ra8+.} Nxf1 {[%emt 0:00:09]} 37. Ra8+ {[%emt 0:00:04]} Kf7 {[%emt 0:00:35]} 38. Ra7 {[%emt 0:00:18] [#]} Rxb6 {[%emt 0:02:32]} 39. Bxb6+ {[%emt 0:00:02][%mdl 4096] Endgame KRB-KRN} Kg6 {[%emt 0:04:03]} 40. a4 {[%emt 0:00:07]} e4 {[%emt 0:01:40][%cal Be5e4,Be4e3,Be3e2][%mdl 32]} 41. Kd1 {[%emt 0:00:00]} (41. Bc5 $17) 41... e3 $1 $19 {[%emt 0:00:00]} 42. Ke1 {[%emt 0:00:00]} e2 {[%emt 0:00:00]} 43. Rd7 {[%emt 0:00:00]} h5 $2 {[%emt 0:00:00]} (43... Ne3 $17 {( -> ...Ng2+)} 44. Bxe3 Rxe3) 44. a5 {[%emt 0:00:00]} (44. Rd3 $142) 44... Nh2 $2 {[%emt 0:00:00][%mdl 8192]} (44... Ne3 $1 $11 {and Black has nothing to worry.} 45. Bxe3 Rxe3) 45. Rd3 $18 {[%emt 0:00:00]} g4 {[%emt 0:00:00]} 46. hxg4 {[%emt 0:00:00]} hxg4 {[%emt 0:00:00]} 47. Re3 {[%emt 0:00:00]} Nf3+ {[%emt 0:00:00]} 48. Kxe2 $1 {[%emt 0:00:00]} Rd6 {[%emt 0:00:00]} 49. Rd3 {[%emt 0:00:00] Prevents Rd2+.} (49. Kf2 $18 {Strongly threatening a6.} Nd2 50. a6) 49... Re6+ $16 {[%emt 0:00:00] [#]} 50. Kf2 $1 {[%emt 0:00:00][%mdl 1024] And now a6 would win. White has strong compensation.} Ne5 {[%emt 0:00:00] [#]} 51. Rd8 {[%emt 0:00:00]} (51. Rb3 $1 $16) 51... Nc4 $11 {[%emt 0:00:00]} 52. Rb8 {[%emt 0:00:00] Black must now prevent a6.} Rd6 {[%emt 0:00:00]} 53. b3 {[%emt 0:05:35]} (53. a6 {with more complications.} Rd2+ 54. Kg3 Rxb2 55. a7) 53... Nxb6 {[%emt 0:00:00]} 54. Rxb6 {[%emt 0:00:03]} ({But not} 54. axb6 Rd2+ 55. Kg3 Kg5 $15) 54... Kf5 {[%emt 0:00:00]} 55. a6 {[%emt 0:00:31][%cal Ba5a6,Ba6a7][%mdl 32]} Ke4 $2 {[%emt 0:00:00][%mdl 8192]} (55... Rd2+ $11 56. Kg3 (56. Ke3 Rc2 $11) 56... Rd3+ 57. Kg2 Rd2+ 58. Kg3 Rd3+ 59. Kg2 Rd2+ 60. Kg3) 56. a7 {[%emt 0:01:08] White mates.} Rd2+ {[%emt 0:00:00]} 57. Kg3 {[%emt 0:00:06]} Ra2 {[%emt 0:00:00]} 58. Rb4+ {[%emt 0:00:10][%mdl 64] Skewer. Quite a comeback for White.  Weighted Error Value: White=0.30/Black=0.36} ({Stronger than} 58. Rb7 c5 $11) 1-0

[Event "10th Amsterdam Science Park 2022"]
[Site "Amsterdam"]
[Date "2022.07.18"]
[Round "1.7"]
[White "Galje, Hans"]
[Black "De Groote, Ewoud"]
[Result "0-1"]
[ECO "E52"]
[WhiteElo "2007"]
[BlackElo "2245"]
[Annotator "TA"]
[PlyCount "84"]
[EventDate "2022.07.18"]
[EventCountry "NED"]
[SourceTitle "playchess.com"]
[Source "ChessBase"]
[SourceQuality "1"]
[TimeControl "5400+30"]

{[%evp 18,84,23,8,17,0,0,0,27,0,0,0,0,0,0,0,0,0,0,0,0,0,0,0,0,0,0,0,0,0,0,0,0,-90,-79,-60,-85,-122,-111,-110,-106,-106,-100,-106,-80,-63,-22,-22,-22,-22,0,0,0,-70,0,0,0,0,42,-208,-59,-249,-117,-361,-341,-340,-186,-1754,-1358]} 1. d4 {[%emt 0:00:03]} Nf6 {[%emt 0:00:06]} 2. c4 {[%emt 0:00:05]} e6 {[%emt 0:00:06]} 3. Nc3 {[%emt 0:00:07]} Bb4 {[%emt 0:00:07]} 4. e3 {[%emt 0:00:17]} d5 {[%emt 0:04:41]} 5. Nf3 {[%emt 0:00:50]} O-O {[%emt 0:00:59]} 6. Bd3 {[%emt 0:00:29]} dxc4 {[%emt 0:04:11]} 7. Bxc4 {[%emt 0:00:08]} b6 {[%emt 0:03:16]} 8. O-O {[%emt 0:02:31]} Bb7 {[%emt 0:01:42]} 9. a3 {[%emt 0:03:05]} Bxc3 {[%emt 0:01:54]} 10. bxc3 {[%emt 0:00:07]} c5 {[%emt 0:08:13] E52: Nimzo-Indian: Rubinstein: 4...0-0 5 Nf3 d5 6 Bd3 b6.} 11. a4 {[%emt 0:05:13]} Qc7 {[%emt 0:06:42]} 12. Bd3 {[%emt 0:10:29]} Nbd7 {[%emt 0:11:26] The position is equal.} 13. Qe2 {[%emt 0:10:22]} e5 {[%emt 0:10:38]} 14. Nxe5 {[%emt 0:04:49]} Nxe5 {[%emt 0:08:20]} 15. dxe5 {[%emt 0:00:16]} Qxe5 {[%emt 0:00:13]} 16. Bb2 {[%emt 0:00:26] [#]} Rad8 $146 {[%emt 0:13:26]} ({Predecessor:} 16... Rfe8 17. a5 Qg5 18. g3 Rad8 19. c4 h5 20. axb6 axb6 21. Ra7 Ba8 22. e4 h4 {½-½ (53) Zill,E (2138)-Felkel,S (2176) GER email 2010}) 17. Rad1 {[%emt 0:03:16]} Bc6 {[%emt 0:03:12]} 18. c4 {[%emt 0:09:20]} Qe6 {[%emt 0:01:44]} 19. Bc2 {[%emt 0:12:07]} Rfe8 $40 {[%emt 0:05:32][%mdl 128] Black mounts an attack.} 20. a5 {[%emt 0:09:29]} Ne4 {[%emt 0:03:51]} 21. axb6 {[%emt 0:05:49]} axb6 {[%emt 0:00:01]} 22. Rxd8 {[%emt 0:00:43]} Rxd8 {[%emt 0:00:04]} 23. Rd1 {[%emt 0:00:08] Inhibits Rd2.} Rxd1+ {[%emt 0:04:27]} 24. Qxd1 {[%emt 0:00:23] Threatens to win with Qd8+.} Nd6 {[%emt 0:00:37]} 25. Qh5 {[%emt 0:08:16]} (25. Bd3 $11 {keeps the balance.}) 25... Be4 $17 {[%emt 0:01:56]} 26. Bb3 {[%emt 0:03:37]} (26. Qg5 f6 27. Bxe4 Qxe4 28. Qd5+ Qxd5 29. cxd5 b5 $19) 26... f6 {[%emt 0:00:38]} 27. Qh4 {[%emt 0:02:14]} Bd3 {[%emt 0:00:36]} (27... Nxc4 $6 28. Qg3 $11) 28. h3 {[%emt 0:03:59]} h6 {[%emt 0:01:26][%cal Rd3c4] Black is more active.} ({But not} 28... Nxc4 $6 29. Qg3 $11) 29. Qf4 {[%emt 0:01:34]} Bxc4 {[%emt 0:00:41]} 30. Bc2 {[%emt 0:00:50]} b5 {[%emt 0:01:00]} 31. e4 {[%emt 0:01:17]} b4 {[%emt 0:02:48]} 32. e5 {[%emt 0:00:31]} fxe5 {[%emt 0:00:26]} 33. Bxe5 {[%emt 0:00:05]} Nf7 {[%emt 0:00:43]} 34. Bb2 {[%emt 0:00:53] aiming for Qb8+.} Bb5 {[%emt 0:00:50]} 35. Bf5 {[%emt 0:01:19]} ({White should try} 35. Qg3 $11 g5 36. Bb3) 35... Qd6 {[%emt 0:00:36]} (35... Qe1+ $1 $15 36. Kh2 Qe7) 36. Qg4 $1 $11 {[%emt 0:01:01][%csl Gb2][%cal Rg4g7]} (36. Bh7+ $2 Kxh7 37. Qxf7 Qg6 38. Qxg6+ Kxg6 $19) 36... g5 {[%emt 0:00:08]} (36... Ng5 37. h4 Qd2 38. hxg5 Qxb2 39. Bg6 Qa1+ 40. Kh2 Qe5+ 41. f4) 37. Be6 {[%emt 0:00:43] Black must now prevent Qf5. This bishop pair is nice.} Bd3 {[%emt 0:00:56] Prevents Qf5.} (37... Qd3 $5 {[%cal Rd3b1]} 38. Qh5 Be8 $11) 38. Bc8 $2 {[%emt 0:01:47] [#]} (38. Ba2 $14 {keeps the upper hand.} Bg6 39. Qc8+ Qf8 40. Qe6) 38... c4 {[%emt 0:00:25]} (38... h5 $1 $19 {[%cal Rh5g4]} 39. Qd7 Qxd7 40. Bxd7 c4) 39. Bd4 $2 {[%emt 0:00:17]} ({White has to play} 39. Be6 $1 $15) 39... c3 {[%emt 0:00:29]} (39... h5 $19 40. Qd7 Qxd7 41. Bxd7 Nd6) 40. Bb7 $2 {[%emt 0:00:51]} (40. Be6 $17) 40... c2 $19 {[%emt 0:00:22]} 41. Qc8+ {[%emt 0:00:00]} Qd8 {[%emt 0:00:00]} (41... Kh7 $142 42. Bb2 Bg6) 42. Qc5 {[%emt 0:00:00] [#]} (42. Qxd8+ Nxd8 43. Bd5+ Kf8 44. Bb2) 42... Qxd4 $3 {[%emt 0:00:00][%mdl 512] Weighted Error Value: White=0.54/Black=0.24 (precise)} 0-1

[Event "10th Amsterdam Science Park 2022"]
[Site "Amsterdam"]
[Date "2022.07.18"]
[Round "1.8"]
[White "Afek, Yochanan"]
[Black "Li-Behn, Tobias"]
[Result "1-0"]
[ECO "C45"]
[WhiteElo "2210"]
[BlackElo "2000"]
[Annotator "TA"]
[PlyCount "81"]
[EventDate "2022.07.18"]
[EventCountry "NED"]
[SourceTitle "playchess.com"]
[Source "ChessBase"]
[SourceQuality "1"]
[TimeControl "5400+30"]

{[%evp 15,81,62,61,56,57,40,72,54,61,46,157,140,165,83,83,59,84,60,60,60,86,75,85,67,74,82,72,62,79,77,84,80,74,76,102,90,98,57,106,80,566,564,561,558,654,681,646,656,783,761,823,795,1764,1226,29977,6674,29978,5604,5624,5427,1949,1754,29972,29973,29976,29977,29998,29999]} 1. e4 {[%emt 0:00:06]} e5 {[%emt 0:00:25]} 2. Nf3 {[%emt 0:00:06]} Nc6 {[%emt 0:00:11]} 3. Nc3 {[%emt 0:02:34]} Nf6 {[%emt 0:00:40]} 4. d4 {[%emt 0:00:04]} exd4 {[%emt 0:01:18]} 5. Nxd4 {[%emt 1:30:10]} Nxd4 {[%emt 0:02:38]} 6. Qxd4 {[%emt 0:00:00]} d6 {[%emt 0:00:32]} 7. Bg5 {[%emt 0:00:00]} Be7 {[%emt 0:01:28]} 8. O-O-O {[%emt 0:00:00]} O-O {[%emt 0:03:52]} 9. f3 {[%emt 0:00:00] White is more active. C45: Scotch Game.} Be6 {[%emt 0:04:38]} 10. g4 {[%emt 0:00:00][%cal Bg2g4,Bg4g5][%mdl 32]} a6 {[%emt 0:05:07]} 11. Be3 {[%emt 0:00:00] White is better.} c5 {[%emt 0:01:27]} 12. Qd2 {[%emt 0:00:00]} Qa5 {[%emt 0:05:29] [#]} (12... b5 $14) 13. g5 $146 {[%emt 0:00:00]} ({Predecessor:} 13. Kb1 Kh8 14. g5 Ne8 15. f4 f5 16. exf5 Bxf5 17. Nd5 Qxd2 18. Rxd2 Bd8 19. Bg2 {1-0 (40) Delorme,A (2010)-Rigolot,M (1900) Hyeres 2002}) 13... Nd7 {[%emt 0:01:30] [#]} 14. Nd5 {[%emt 0:00:00]} (14. Kb1 $1 $18) 14... Qxd2+ {[%emt 0:02:24]} 15. Rxd2 {[%emt 0:00:00]} Bxd5 {[%emt 0:00:16]} 16. Rxd5 {[%emt 0:00:00]} b5 {[%emt 0:02:36]} 17. h4 {[%emt 0:00:00]} Rfd8 {[%emt 0:01:43]} 18. Bf4 {[%emt 0:00:00]} Nb6 {[%emt 0:02:58]} 19. Rd2 {[%emt 0:00:00]} Ra7 {[%emt 0:01:18]} 20. Bh3 {[%emt 0:00:00]} d5 {[%emt 0:03:51]} 21. exd5 {[%emt 0:00:00] And now d6 would win.} Rxd5 {[%emt 0:01:51]} 22. Rhd1 {[%emt 0:00:00][%cal Bh1d1,Bd1d2,Bd2d6][%mdl 32]} Rxd2 {[%emt 0:00:56]} 23. Rxd2 {[%emt 0:00:00]} g6 {[%emt 0:01:14]} 24. b3 {[%emt 0:00:00]} c4 {[%emt 0:06:54]} 25. Be3 {[%emt 0:00:00]} Rb7 {[%emt 0:03:38]} 26. f4 {[%emt 0:00:00]} Ba3+ {[%emt 0:04:39]} (26... Rb8 $14) 27. Kd1 {[%emt 0:00:00] Black must now prevent Rd8+.} Bb2 $2 {[%emt 0:00:51][%mdl 8192] This move loses the game for Black.} (27... Rb8 $16 {is tougher.}) 28. Rd6 $18 {[%emt 0:00:00]} cxb3 {[%emt 0:02:42]} 29. axb3 {[%emt 0:00:00]} Na4 {[%emt 0:01:32]} 30. bxa4 {[%emt 0:00:00]} bxa4 {[%emt 0:00:10]} 31. Rxa6 {[%emt 0:00:00]} Bc3 {[%emt 0:04:23]} 32. Rxa4 {[%emt 0:00:00]} Rb1+ {[%emt 0:01:00]} 33. Ke2 {[%emt 0:00:00]} Rh1 {[%emt 0:01:12]} 34. Bg2 {[%emt 0:00:00]} Rxh4 {[%emt 0:00:51]} 35. Ra8+ {[%emt 0:00:00]} Kg7 {[%emt 0:00:02]} 36. Bc5 {[%emt 0:00:00]} (36. Kd3 $142 Rg4 37. Kxc3 Rg3 {[#]} 38. Kd3 $1 h6 39. gxh6+ Kxh6 40. Bd5 Kh5 41. Bxf7) 36... h6 {[%emt 0:01:04]} 37. Kd3 {[%emt 0:00:00]} Bb2 {[%emt 0:01:27]} 38. c3 {[%emt 0:00:00] Threatening mate with Bd4+.} hxg5 {[%emt 0:01:35]} 39. fxg5 {[%emt 0:00:00] White mates.} Rg4 {[%emt 0:01:01]} 40. Bd4+ {[%emt 0:00:00]} f6 {[%emt 0:00:36]} 41. Bxf6+ {[%emt 0:00:00] Weighted Error Value: White=0.13 (very precise) /Black=0.87} 1-0

[Event "10th Amsterdam Science Park 2022"]
[Site "Amsterdam"]
[Date "2022.07.18"]
[Round "1.9"]
[White "Schilstra, Laurens"]
[Black "Van der Poel, Henk"]
[Result "1-0"]
[ECO "B53"]
[WhiteElo "1993"]
[BlackElo "2210"]
[Annotator "TA"]
[PlyCount "73"]
[EventDate "2022.07.18"]
[EventCountry "NED"]
[SourceTitle "playchess.com"]
[Source "ChessBase"]
[SourceQuality "1"]
[TimeControl "5400+30"]

{[%evp 14,73,-25,-29,-19,-31,27,-14,-8,-30,-16,-14,1,-29,34,0,0,-8,53,64,72,77,79,72,57,29,66,30,52,52,96,91,134,123,152,160,187,180,191,173,217,160,294,281,356,351,339,334,412,383,687,680,726,707,800,807,801,750,769,741,691,541]} 1. e4 {[%emt 0:00:06]} c5 {[%emt 0:00:21]} 2. Nf3 {[%emt 0:00:20]} d6 {[%emt 0:01:40]} 3. d4 {[%emt 0:02:05]} cxd4 {[%emt 0:00:10]} 4. Qxd4 {[%emt 0:00:09]} a6 {[%emt 0:02:08]} 5. Bg5 {[%emt 0:03:56]} Nc6 {[%emt 0:01:06]} 6. Qd2 {[%emt 0:00:14]} h6 {[%emt 0:03:51]} 7. Bh4 {[%emt 0:00:55]} g5 {[%emt 0:01:51]} 8. Bg3 {[%emt 0:00:53]} Nf6 {[%emt 0:00:49] B53: Sicilian: 2...d6: Lines with Qxd4.} 9. Nc3 {[%emt 0:00:09]} Nh5 {[%emt 0:00:41]} (9... Be6 $15) 10. Be2 {[%emt 0:05:53]} Bg7 {[%emt 0:03:09] [#] The position is equal.} 11. O-O $146 {[%emt 0:01:29]} ({Predecessor:} 11. Rd1 Nxg3 12. hxg3 O-O 13. Nd5 Be6 14. Nh2 Nd4 15. c3 Nxe2 16. Qxe2 Bxd5 17. Rxd5 {1-0 (41) Polihroniade,E (2210)-Ivanisevic,D Smederevska Palanka 1979}) 11... Nxg3 {[%emt 0:08:09]} 12. hxg3 {[%emt 0:00:20]} O-O {[%emt 0:04:25]} 13. Rab1 {[%emt 0:04:50]} f5 {[%emt 0:04:19]} (13... e6 $11) 14. exf5 {[%emt 0:03:26]} Bxf5 {[%emt 0:00:19]} 15. Rfe1 {[%emt 0:01:31]} e5 {[%emt 0:04:35]} (15... Qd7 $11) 16. Bd3 $14 {[%emt 0:02:57]} Be6 {[%emt 0:03:02]} 17. Be4 {[%emt 0:01:00] Prevents d5.} Qd7 {[%emt 0:07:01]} 18. Rbd1 {[%emt 0:02:04]} Rad8 {[%emt 0:01:54]} 19. Bd5 {[%emt 0:01:45]} Ne7 {[%emt 0:04:15]} 20. Bxe6+ {[%emt 0:03:27]} Qxe6 {[%emt 0:00:03]} 21. Nd5 $1 {[%emt 0:01:36]} Nc6 {[%emt 0:04:54] Black is on the road to losing.} 22. Qe3 {[%emt 0:06:43]} Qg6 {[%emt 0:09:44]} 23. c3 {[%emt 0:12:43] White is more active.} Rf7 {[%emt 0:02:57]} 24. Nd2 {[%emt 0:01:07]} h5 {[%emt 0:04:42]} 25. Ne4 {[%emt 0:01:58]} Bh6 {[%emt 0:00:15]} 26. Qb6 {[%emt 0:00:27] Strongly threatening Nb4.} Rdd7 {[%emt 0:05:05]} 27. a4 {[%emt 0:07:21][%cal Ba2a4,Ba4b5][%mdl 32]} Qe6 {[%emt 0:02:19]} (27... g4 $16 {is a better defense.} 28. Qb3 Rd8) 28. b4 $18 {[%emt 0:05:58]} Rf8 {[%emt 0:10:10]} 29. b5 {[%emt 0:01:46]} axb5 {[%emt 0:03:22]} 30. axb5 {[%emt 0:01:22]} Nd8 {[%emt 0:00:08]} 31. Nc7 {[%emt 0:03:34] Pair of Knights!} Qc4 {[%emt 0:03:14] [#]} (31... Qe7 32. Rxd6 Rxd6 33. Nxd6 h4 34. gxh4 (34. Nxb7 hxg3 35. fxg3 Nxb7 $14) 34... gxh4 35. Nxb7 Rf6) 32. Nd5 {[%emt 0:04:24] White is clearly winning.} Bg7 {[%emt 0:01:47] Against Ndf6+} 33. Qe3 {[%emt 0:02:25]} Ne6 {[%emt 0:00:31]} 34. Nb6 {[%emt 0:00:11]} Qxb5 {[%emt 0:00:10]} 35. Nxd7 {[%emt 0:01:47]} Qxd7 {[%emt 0:00:05]} 36. Rxd6 {[%emt 0:00:23]} Qe7 {[%emt 0:00:45]} 37. Qd3 {[%emt 0:01:00] Weighted Error Value: White=0.10 (very precise) /Black=0.47} 1-0

[Event "10th Amsterdam Science Park 2022"]
[Site "Amsterdam"]
[Date "2022.07.18"]
[Round "1.10"]
[White "Tan, Kevin"]
[Black "Straat, Evert-Jan"]
[Result "1-0"]
[ECO "D40"]
[WhiteElo "2209"]
[BlackElo "1992"]
[Annotator "TA"]
[PlyCount "57"]
[EventDate "2022.07.18"]
[EventCountry "NED"]
[SourceTitle "playchess.com"]
[Source "ChessBase"]
[SourceQuality "1"]
[TimeControl "5400+30"]

{[%evp 9,57,0,16,-64,29,9,21,27,90,0,8,0,29,8,0,-12,2,-26,-11,-40,0,-46,68,70,60,47,54,33,71,65,91,93,95,94,110,99,88,91,171,43,124,130,129,72,144,127,181,185,243,204]} 1. d4 {[%emt 0:00:03]} d5 {[%emt 0:00:17]} 2. c4 {[%emt 0:00:23]} e6 {[%emt 0:00:09]} 3. Nf3 {[%emt 0:00:16]} Nf6 {[%emt 0:00:39]} 4. Bf4 {[%emt 0:01:13]} c5 {[%emt 0:03:36]} 5. Nc3 {[%emt 0:00:45]} a6 {[%emt 0:03:32]} 6. Rc1 {[%emt 0:03:32] D40: Queen's Gambit Declined: Semi-Tarrasch with 5 e3.} (6. e3 $11) 6... Nc6 {[%emt 0:11:24]} ({Black should play} 6... cxd4 $15 7. Nxd4 Nbd7) 7. e3 {[%emt 0:03:13]} cxd4 {[%emt 0:07:20]} 8. Nxd4 {[%emt 0:07:11] The position is equal.} Qb6 {[%emt 0:13:49]} (8... Bd7 $11 {remains equal.}) 9. Nb3 {[%emt 0:10:58] [#]} (9. Nxc6 $16 {Strongly threatening Ne5.} bxc6 10. Qc2) 9... Bb4 $146 {[%emt 0:07:16]} ({Predecessor:} 9... Be7 10. cxd5 exd5 11. Be2 Be6 12. O-O O-O 13. a3 Rad8 14. Na4 Qa7 15. Bc7 Rd7 {1-0 (32) Soto Hincapie,E (1683)-Lopez Betancourt,B (1919) Cali 2015}) 10. a3 {[%emt 0:07:05]} Be7 {[%emt 0:11:16]} 11. c5 {[%emt 0:08:26]} Qd8 {[%emt 0:02:29]} 12. Bd3 {[%emt 0:04:51]} e5 {[%emt 0:02:49]} 13. Bg3 {[%emt 0:03:50]} Be6 {[%emt 0:01:17][%cal Of6e4]} 14. O-O {[%emt 0:06:15]} O-O {[%emt 0:07:36][%cal Of6e4]} 15. Bc2 {[%emt 0:05:03] Against Ne4} (15. Qc2 $11) 15... b6 {[%emt 0:10:26]} (15... g6 $15) 16. cxb6 $14 {[%emt 0:02:03]} Qxb6 {[%emt 0:00:10]} 17. Na4 {[%emt 0:00:17]} Qb5 {[%emt 0:01:24] [#]} 18. Nac5 $1 {[%emt 0:00:46] Prevents Ne4.} Bg4 {[%emt 0:01:22]} (18... e4 19. Nxe6) 19. f3 {[%emt 0:00:32]} Bh5 {[%emt 0:00:39]} 20. Bd3 {[%emt 0:01:37] Prevents e4.} Qb6 {[%emt 0:01:33]} 21. Na4 {[%emt 0:00:40] White is more active.} Qb7 {[%emt 0:01:30]} (21... Qxe3+ $2 22. Bf2 Qf4 23. Nb6 $18 (23. Rxc6 Qxa4 24. Qc2 Rab8 $15)) 22. Nbc5 $36 {[%emt 0:00:35][%mdl 2048] Prevents e4. White is in control.} Bxc5 {[%emt 0:03:08]} 23. Nxc5 {[%emt 0:00:39]} Qb6 {[%emt 0:04:25]} (23... Qxb2 $16 24. Qc2 (24. Nxa6 Qb6 $11) 24... Qxc2 25. Bxc2 (25. Rxc2 Bg6 $14) 25... Bg6) 24. b4 {[%emt 0:00:55]} (24. Na4 $18 Qb7 25. Qc2) 24... Bg6 {[%emt 0:00:17]} (24... e4 $1 $14) 25. Be2 $16 {[%emt 0:02:23]} Rfd8 {[%emt 0:00:27]} 26. Bf2 {[%emt 0:03:46]} (26. Na4 $142 Qb7 27. Qd2) 26... d4 {[%emt 0:02:03]} (26... Ne7 $142) 27. e4 {[%emt 0:01:25]} Nd7 {[%emt 0:00:24]} (27... Nb8 $16) 28. Qa4 $18 {[%emt 0:02:45] [#] aiming for Nxd7.} Nxc5 {[%emt 0:01:45]} (28... Nf8 $142 29. Bc4 (29. Bxa6 Ne7 $18) 29... Ra7) 29. Rxc5 {[%emt 0:00:10] Weighted Error Value: White=0.33/Black=0.42} 1-0